Cogmind - Beta 16 @@@ ROGUE MODE // 2025.11.29 @ 16:06:39 Player: JuustuToug Result: Destroyed by P-80 Master with Gamma Rifle Performance ------------- Evolutions (8) 4000 Regions Visited (15) 3000 Robots Destroyed (197) 985 Value Destroyed (7226) 7226 Prototype IDs (37) 740 Alien Tech Used (0) 0 Bonus (2433) 2433 TOTAL SCORE: 18384 Bonus ------- High Alert Combat Kills 66 Follower Combat Kills 1102 Registered with UFD 300 Met Optimus in HQ 500 Met R17 at Cetus 500 Friendly Fire -35 Cogmind --------- Core Integrity 0/1450 Matter 34/300 Energy 100/100 System Corruption 5% Temperature Cool (0) Movement Core (50) Location -2/Research Parts ------- > --- POWER (2) -------- (None) > --- PROPULSION (7) --- (None) > --- UTILITY (11) ----- Advanced Signal Interpreter Experimental Melee Analysis Suite Core Analyzer Jamming Amplifier > --- WEAPON (3) ------- (None) > --- INVENTORY (5) ---- IFF Parser Experimental Reaction Control System Point Singularity Launcher Force Lance Enhanced Force Lance Peak State ------------ > --- POWER ------------ Light Antimatter Reactor Particle Reactor > --- PROPULSION ------- Thunder Leg Myomer Leg Myomer Leg Myomer Leg Myomer Leg > --- UTILITY ---------- High-capacity Storage Unit Advanced Sensor Array Advanced Signal Interpreter Advanced Terrain Scan Processor Core Analyzer Force Booster Transmission Jammer ECM Suite Centrium Medium Armor Plating Centrium Medium Armor Plating EM Shield > --- WEAPON ----------- Axe Ripper Enhanced Force Lance > --- INVENTORY -------- Neutrino Core Light Antimatter Reactor Quantum Reactor Carbon-fiber Leg Carbon-fiber Leg Flexi-carbon Leg Myomer Leg Myomer Leg Advanced Power Amplifier Improved Sensor Array Advanced Signal Interpreter Transmission Jammer Coil Gun Coil Gun Coil Gun Long-range Missile Launcher Great Maul Enhanced Force Lance [Rating: 124] Favorites ----------- Power Cooled Ion Engine Engine Cooled Ion Engine Power Core Enhanced Nuclear Core Reactor Light Antimatter Reactor Propulsion Titanium Leg Treads Light Treads Leg Titanium Leg Hover Unit Improved Gyrokinetic Inverter Flight Unit Impulse Thruster Array Utility High-capacity Storage Unit Device Transmission Jammer Storage High-capacity Storage Unit Processor Advanced Signal Interpreter Hackware Hacking Suite Protection Layered Medium Armor Plating Weapon Advanced Beam Cannon Energy Gun Heavy Particle Gun Energy Cannon Advanced Beam Cannon Ballistic Gun Light Assault Rifle Launcher Rocket Launcher Special Weapon CPS Tube Impact Weapon Great Maul Slashing Weapon Axe Piercing Weapon Enhanced Force Lance Build | -11 -10 -10 -9 -8 -8 -8 -8 -6 -5 -5 -5 -5 -4 -3 -2 ------- Run | Yrd Mat Min Mat Mat Sto Rec Scr Fac Fac Ext Cet Arc Fac Res Res Slots Evolved 16 | . . . 2 2 . . . 4 2 . . . 2 2 2 Power 1 | . . . . . . . . 1 . . . . . . . Propulsion 5 | . . . 1 1 . . . . 1 . . . . . 2 Utility 9 | . . . 1 1 . . . 3 1 . . . 2 1 . Weapon 1 | . . . . . . . . . . . . . . 1 . Parts Attached 238 | 7 5 5 29 10 24 2 10 41 4 28 3 2 23 27 18 Power 35 | 1 2 1 3 1 3 1 1 8 1 4 1 1 2 5 . Engine 19 | 1 2 1 2 1 3 . 1 4 1 2 . 1 . . . Core 9 | . . . 1 . . 1 . 4 . 2 1 . . . . Reactor 7 | . . . . . . . . . . . . . 2 5 . Propulsion 81 | 2 . . 15 6 9 . 1 11 1 14 . 1 8 10 3 Treads 19 | 2 . . 15 2 . . . . . . . . . . . Leg 55 | . . . . 4 9 . 1 11 1 14 . 1 8 6 . Wheel . | . . . . . . . . . . . . . . . . Hover 5 | . . . . . . . . . . . . . . 2 3 Flight 2 | . . . . . . . . . . . . . . 2 . Utility 72 | 2 2 3 3 2 3 . 5 14 2 6 1 . 8 9 12 Device 36 | 1 1 1 . . 2 . 4 7 1 2 . . 6 4 7 Storage 6 | 1 1 2 1 . . . . . . . . . . 1 . Processor 16 | . . . . 2 . . 1 3 1 2 . . . 3 4 Hackware 4 | . . . 2 . 1 . . . . . . . . . 1 Protection 10 | . . . . . . . . 4 . 2 1 . 2 1 . Artifact . | . . . . . . . . . . . . . . . . Weapon 50 | 2 1 1 8 1 9 1 3 8 . 4 1 . 5 3 3 Energy Gun 6 | . . . 2 . 4 . . . . . . . . . . Energy Cannon 5 | . . . 2 . 1 . 1 . . . . . 1 . . Ballistic Gun 10 | 2 1 1 1 . 3 . . . . . 1 . 1 . . Ballistic Cannon . | . . . . . . . . . . . . . . . . Launcher 8 | . . . 1 1 1 1 . 1 . . . . . 1 2 Special Weapon 2 | . . . . . . . 1 1 . . . . . . . Impact Weapon 2 | . . . . . . . . . . 1 . . . . 1 Slashing Weapon 14 | . . . 2 . . . 1 6 . 3 . . 2 . . Piercing Weapon 3 | . . . . . . . . . . . . . 1 2 . Special Melee Weapon . | . . . . . . . . . . . . . . . . Unidentified Prototypes 28 | . . 1 6 . 7 . . 1 1 . 2 . 1 3 6 Parts Lost 98 | . 1 . 2 2 7 . . 17 1 8 1 2 16 26 15 Power 9 | . . . . 1 . . . 2 . 1 . . 1 2 2 Propulsion 38 | . . . 2 1 3 . . 4 . 3 . 1 7 11 6 Utility 35 | . 1 . . . . . . 6 . 2 1 1 6 11 7 Weapon 16 | . . . . . 4 . . 5 1 2 . . 2 2 . Highest Loss Streak 13 | . 1 . 2 2 2 . . 7 1 3 1 2 9 13 13 To Critical Strikes 1 | . . . . . . . . . . . . . . . 1 Average Backups 17 | 2 9 14 19 19 19 20 19 18 18 17 19 19 17 14 4 Power 1 | . 1 1 1 1 1 2 1 1 2 2 2 3 2 2 . Propulsion 3 | . 1 2 2 2 3 4 4 4 3 3 4 3 3 4 . Utility 5 | . 2 4 7 6 4 4 6 7 7 8 8 9 5 3 1 Weapon 6 | . 5 6 7 9 9 9 6 4 4 2 4 4 6 5 2 Tool/Special . | . . . . . . . . . . . . . . . . Unused Backups 69 | . 5 2 18 . 9 1 10 5 . 7 1 1 2 4 4 Power 8 | . 1 . 3 . . . 1 . . 1 . 1 . 1 . Propulsion 12 | . 1 . . . 4 1 1 2 . 3 . . . . . Utility 20 | . . . 5 . 3 . 5 . . 3 . . . 1 3 Weapon 28 | . 3 2 10 . 2 . 3 3 . . 1 . 2 2 . Tool/Special 1 | . . . . . . . . . . . . . . . 1 Average Slot Usage (%) 95 | . 99 100 99 97 99 100 94 89 94 97 97 94 97 82 62 Engine 7 | . 14 14 9 9 9 9 9 3 4 5 1 3 . . . Core 1 | . . . 1 . . . . 6 5 4 8 6 4 . . Treads 9 | . 28 28 32 30 . . . . . . . . . . . Leg 19 | . . . . 4 35 36 36 25 28 28 29 29 25 17 . Device 12 | . 13 14 . . 8 9 12 22 17 15 15 11 19 19 14 Storage 8 | . 14 14 10 9 9 9 9 6 5 4 5 5 5 3 . Processor 8 | . . . . 12 9 9 6 7 16 19 17 17 15 15 21 Hackware 5 | . . . 21 14 9 9 4 . . . . . . . . Protection 1 | . . . . . . . . 5 5 2 5 5 9 3 3 Energy Cannon 3 | . . . 9 8 5 8 6 . . . . . . . . Ballistic Gun 8 | . 28 28 12 8 8 9 6 . . . . . . . . Slashing Weapon 3 | . . . . . 1 . 2 8 7 6 10 11 9 6 . Peak Build Rating 124 | 7 8 20 25 29 35 35 43 66 73 85 85 80 116 124 122 Average Rating 47 | 5 7 14 24 27 31 34 37 58 70 76 80 78 101 100 101 On Entrance 46 | . 7 8 20 23 28 35 35 39 61 70 75 80 72 108 75 Avg Prop Armor Cover (%) 8 | . . . . . . . . . . . . . . 3 9 Naked Turns . | . . . . . . . . . . . . . . . . Heaviest Build 108 | 13 28 52 55 55 60 56 63 77 77 92 83 80 99 108 31 Greatest Support 123 | 40 40 40 62 80 68 68 70 79 84 110 100 90 115 123 47 Greatest Overweight (x) 1 | . . 1 1 1 1 . . 1 1 1 . . 1 1 . Average Overweight (x) . | . . . . . . . . . . . . . . . . Largest Inventory Capacity 20 | 8 15 20 20 20 20 20 20 20 20 20 20 20 20 20 5 Average Capacity 18 | 7 13 18 19 20 20 20 20 20 20 19 20 20 20 16 5 Most Carried 20 | 4 15 15 20 20 20 20 20 20 20 20 20 20 20 20 5 Average Carried 17 | 2 9 14 19 19 19 20 19 18 19 18 19 19 17 14 4 Final Capacity 20 | 8 15 20 20 20 20 20 20 20 20 20 20 20 20 5 5 Final Carried 20 | 3 14 15 20 20 20 20 20 19 20 19 20 19 19 5 5 Scrap Suit Usage (%) 7 | . . . . . . . 33 31 . . . . . . . Parts Cannibalized 5 | . . . . . . . . 5 . . . . . . . Class Distribution -------------------- 37% | Mutant 20% | Scavenger-Mutant 16% | Hacker-Mutant 10% | Scavenger-Gladiator 4% | Infiltrator-Gladiator 3% | Scrapper Dominant Class ---------------- Mutant | -10/Materials Mutant | -10/Mines Hacker-Mutant | -9/Materials Hacker-Mutant | -8/Materials Scavenger-Mutant | -8/Storage Mutant | -8/Recycling Mutant | -8/Scraptown Infiltrator-Gladiator | -6/Factory Scavenger-Assassin | -5/Factory Scavenger-Gladiator | -5/Extension Scavenger-Mutant | -5/Cetus Scavenger-Mutant | -5/Archives Scavenger-Mutant | -4/Factory Scavenger-Gladiator | -3/Research Mutant | -2/Research Resources | -11 -10 -10 -9 -8 -8 -8 -8 -6 -5 -5 -5 -5 -4 -3 -2 ----------- Run | Yrd Mat Min Mat Mat Sto Rec Scr Fac Fac Ext Cet Arc Fac Res Res Matter Collected 4423 | 286 239 97 635 190 683 80 105 676 113 389 165 10 290 95 370 Remotely . | . . . . . . . . . . . . . . . . Salvage Created 7961 | 54 540 66 1133 280 1158 188 98 1688 113 365 175 32 821 784 466 Parts 444 | 4 39 6 72 20 57 12 6 85 10 13 5 5 48 39 23 Haulers Intercepted 11 | . 2 . 5 . 4 . . . . . . . . . . Recyclers Shooed 5 | 1 . . . 1 . 1 . . . 1 . . . . 1 Parts Field Recycled . | . . . . . . . . . . . . . . . . Retrieved Matter . | . . . . . . . . . . . . . . . . Parts Self-Destructed 4 | . . . . . . . 4 . . . . . . . . Prevented . | . . . . . . . . . . . . . . . . Parts Restored . | . . . . . . . . . . . . . . . . Kills | -11 -10 -10 -9 -8 -8 -8 -8 -6 -5 -5 -5 -5 -4 -3 -2 ------- Run | Yrd Mat Min Mat Mat Sto Rec Scr Fac Fac Ext Cet Arc Fac Res Res Combat Hostiles Destroyed 142 | . 17 1 25 9 15 2 . 33 1 5 4 . 9 10 11 Melee 50 | . . . . . . . . 27 1 4 2 . 9 6 1 Guns 42 | . 17 1 11 1 11 1 . . . . . . . . . Cannons 15 | . . . 10 2 3 . . . . . . . . . . AOE 31 | . . . 4 5 . . . 6 . . 2 . . 4 10 Classes Destroyed 14 | 1 5 2 2 . 2 . . 2 . . . . . . . Worker 6 | . . . 1 . . . . . . . . . 1 2 2 Builder 4 | . . 1 . 1 . 1 . 1 . . . . . . . Tunneler 7 | 2 . . . . . . . 2 1 . . . . 1 1 Hauler 11 | . 2 . 5 . 4 . . . . . . . . . . Recycler 11 | . . . . . 1 1 . 3 . . . . 1 2 3 Operator 6 | . 1 . . . 1 . . . 1 . . 1 1 . 1 Watcher 9 | . 2 . 1 . 2 . . . . 2 1 . 1 . . Swarmer 46 | . 12 . 7 4 . . . 10 . . . . . 4 9 Grunt 40 | . 5 1 9 3 6 . . 10 . 3 . . 1 1 1 Duelist 3 | . . . . . . . . 2 . . . . . 1 . Sentry 25 | . . . 9 2 8 2 . 2 1 1 . . . . . Hunter 8 | . . . . . 1 . . 1 . 1 . . 5 . . Programmer 16 | . . . . . . . . 8 . . . . 3 4 1 Cetus Guard 4 | . . . . . . . . . . . 4 . . . . Zionite 1 | . . 1 . . . . . . . . . . . . . Best Kill Streak 7 | 1 4 1 5 6 4 1 . 5 2 1 3 1 5 5 7 Combat Bots Only 6 | . 4 1 5 5 3 1 . 5 1 1 2 . 4 4 6 Max Kills in Single Turn 5 | 1 1 1 2 5 1 1 . 3 1 1 1 1 1 3 4 Gunslinging . | . . . . . . . . . . . . . . . . Exploded 4 | . . . 2 4 . . . 3 . . 1 . . 2 4 Melee 1 | . . . . . . . . 1 1 1 1 . 1 1 1 Uniques/NPCs Destroyed . | . . . . . . . . . . . . . . . . Combat | -11 -10 -10 -9 -8 -8 -8 -8 -6 -5 -5 -5 -5 -4 -3 -2 -------- Run | Yrd Mat Min Mat Mat Sto Rec Scr Fac Fac Ext Cet Arc Fac Res Res Hostile Shots Fired 1789 | . 84 7 124 75 101 6 . 355 27 117 45 25 303 290 230 Missed 653 | . 28 3 33 15 22 2 . 118 10 40 21 13 121 118 109 Hits 1136 | . 56 4 91 60 79 4 . 237 17 77 24 12 182 172 121 Melee 18 | . . . . . . . . 11 2 . . . . 5 . Projectile 1118 | . 56 4 91 60 79 4 . 226 15 77 24 12 182 167 121 Critical Strikes 57 | . . . 2 7 1 . . 15 . 5 10 . 1 11 5 Damage Taken 20617 | . 503 43 1091 853 1256 54 . 4528 312 1884 676 325 2833 3384 2875 Core 4309 | . 113 10 230 98 122 . . 661 23 219 40 52 238 1040 1463 Absorbed by Shields 126 | . . . . . . . . . . . 55 . 71 . . Redirected to Shielding 94 | . . . . . . . . . . . . . . 1 93 Ignored by Resistances 276 | . . . . . . . . . . . . . . 276 . Regen/Repaired (Parts) 773 | . . . 217 131 134 . . 162 . 129 . . . . . Core Remaining (%) 54 | 100 . 50 42 . . . 60 22 . . . 66 79 20 . Volleys Fired 321 | 18 78 11 86 23 72 6 1 12 . . 6 . . 4 4 Largest 2 | 2 2 2 2 2 2 2 1 1 . . 1 . . 1 1 Hottest 93 | 40 40 45 93 91 93 93 . 33 . . 43 . . 60 55 Shots Fired 603 | 34 156 20 168 44 141 13 1 12 . . 6 . . 4 4 Gun 432 | 34 156 20 104 21 91 6 . . . . . . . . . Cannon 140 | . . . 62 21 50 7 . . . . . . . . . Launcher 29 | . . . 2 2 . . . 11 . . 6 . . 4 4 Special 2 | . . . . . . . 1 1 . . . . . . . Kinetic 411 | 34 156 20 104 21 70 6 . . . . . . . . . Thermal 161 | . . . 62 21 71 7 . . . . . . . . . Explosive 29 | . . . 2 2 . . . 11 . . 6 . . 4 4 Electromagnetic . | . . . . . . . . . . . . . . . . Robot Hit Streak 50 | 15 15 7 17 10 50 13 2 5 . . 5 . . 6 . Robot Miss Streak 5 | 2 5 4 2 1 3 1 . 1 . . 1 . . 2 1 Penetration Max . | . . . . . . . . . . . . . . . . Secondary Targets 2 | . 2 . . . . . . . . . . . . . . Max Gunslinging Chain 1 | . 1 . . . . . . . . . . . . . . Shots Hit Robots 632 | 27 99 14 119 28 105 10 4 100 7 29 9 1 41 28 11 Core Hits 315 | 6 40 5 49 18 43 3 2 61 4 10 17 1 20 20 16 Critical Kills 2 | . . . . . 1 1 . . . . . . . . . Critical Parts Destroyed 2 | . . . . . 1 . . . . 1 . . . . . Critical Strikes 30 | . . . . . 3 1 . 11 . 3 1 . 4 4 3 Burn 1 | . . . . . 1 . . . . . . . . . . Meltdown 2 | . . . . . 1 1 . . . . . . . . . Destroy 1 | . . . . . 1 . . . . . . . . . . Smash 1 | . . . . . . . . . . 1 . . . . . Sever 18 | . . . . . . . . 11 . 2 1 . 4 . . Impale 7 | . . . . . . . . . . . . . . 4 3 Melee Attacks 347 | . . . 4 1 17 . 3 140 8 34 7 1 67 48 17 Impact 7 | . . . . . . . . . . 6 . . . . 1 Slashing 282 | . . . 4 1 17 . 3 140 8 28 7 1 61 12 . Piercing 58 | . . . . . . . . . . . . . 6 36 16 Sneak Attacks 25 | . . . . . . . . 8 2 1 . 1 4 3 6 Combat Hostiles 2 | . . . . . . . . 1 . . . . 1 . . Follow-up Attacks 28 | . . . . . . . . 7 . 1 . . 12 8 . Damage Inflicted 21083 | 229 795 198 2326 763 1819 228 255 4989 360 1131 761 83 1776 2369 3001 Guns 3803 | 229 788 198 1199 201 1102 86 . . . . . . . . . Cannons 1967 | . . . 883 264 717 103 . . . . . . . . . Explosions 5532 | . . . 244 296 . . . 1191 . . 634 . . 1168 1999 Melee 9668 | . . . . . . . 255 3795 346 1131 127 83 1776 1196 959 Ramming 113 | . 7 . . 2 . 39 . 3 14 . . . . 5 43 Kinetic 3511 | 229 788 198 1199 201 810 86 . . . . . . . . . Thermal 2543 | . . . 883 264 1009 103 . 284 . . . . . . . Explosive 5248 | . . . 244 296 . . . 907 . . 634 . . 1168 1999 Electromagnetic . | . . . . . . . . . . . . . . . . Impact 225 | . . . . . . . . . . 225 . . . . . Slashing 7471 | . . . . . . . 255 3795 346 906 127 83 1672 287 . Piercing 1972 | . . . . . . . . . . . . . 104 909 959 Highest Corruption 18 | . . . . 2 2 2 . 18 . . . . 2 7 5 Average Corruption 4 | . . . . 2 2 2 . 7 . . . . 1 6 2 Corruption Purged . | . . . . . . . . . . . . . . . . Corruption Blocked . | . . . . . . . . . . . . . . . . Effects 93 | . . . . 3 21 13 . 40 . . . . 3 9 4 Message Errors 30 | . . . . 1 8 3 . 11 . . . . 1 4 2 Matter Fused 23 | . . . . 1 4 2 . 12 . . . . . 3 1 Heat Flow Errors 10 | . . . . . 3 3 . 4 . . . . . . . Energy Discharges 6 | . . . . . 1 . . 2 . . . . 1 1 1 Parts Fused 1 | . . . . . 1 . . . . . . . . . . Data Loss (minor) 16 | . . . . 1 3 3 . 8 . . . . . 1 . Data Loss (major) 4 | . . . . . . 1 . 3 . . . . . . . Misfires 2 | . . . . . 1 1 . . . . . . . . . Alerts 1 | . . . . . . . . . . . . . 1 . . Overload Shots . | . . . . . . . . . . . . . . . . Overflow Damage 1742 | . . . 6 42 6 . 5 403 . 142 . . 84 281 773 Projectiles 10 | . . . 1 3 6 . . . . . . . . . . Explosions 488 | . . . 5 39 . . . 111 . . . . . 126 207 Melee 1244 | . . . . . . . 5 292 . 142 . . 84 155 566 Knockbacks 1 | . . . . . . . . . . . . . . . 1 Impact 1 | . . . . . . . . . . . . . . . 1 Kinetic . | . . . . . . . . . . . . . . . . Secondary . | . . . . . . . . . . . . . . . . Self-Inflicted Damage 312 | . . . . 145 . . . 144 . . . . . 2 21 Shots 7 | . . . . 3 . . . 4 . . . . . . . Rammed 9 | . 1 . . 1 . . . . . . . . . 2 5 Targets Rammed 15 | . 1 . . 1 . 4 . 1 1 . . . . 2 5 Kicked 6 | . . . . . . 4 . 1 1 . . . . . . Crushed . | . . . . . . . . . . . . . . . . Highest Temperature 322 | . 12 14 234 177 322 247 . 262 . 45 23 . . 22 . Average Temperature 57 | . 7 7 48 69 92 72 . 69 . 16 13 . . 10 . Received Heat Transfer 3683 | . 90 24 351 288 477 18 . 888 65 606 72 27 108 561 108 Siege Activations . | . . . . . . . . . . . . . . . . Martial Activations . | . . . . . . . . . . . . . . . . Shielding Activations . | . . . . . . . . . . . . . . . . Robots Disrupted . | . . . . . . . . . . . . . . . . Combat Hostiles . | . . . . . . . . . . . . . . . . Robots Corrupted 1 | . . . . . . . . . . 1 . . . . . Combat Hostiles 1 | . . . . . . . . . . 1 . . . . . Parts Fried 1 | . . . . . . . . . . 1 . . . . . Impact Corruptions 1 | . . . . . . . . . . 1 . . . . . Robots Melted 3 | . . . . 1 1 1 . . . . . . . . . Combat Hostiles 3 | . . . . 1 1 1 . . . . . . . . . Parts Melted 9 | . . . 1 2 4 2 . . . . . . . . . Heat Transferred 4368 | . . . 1591 481 1961 185 . 150 . . . . . . . Parts Sabotaged . | . . . . . . . . . . . . . . . . Parts Stolen . | . . . . . . . . . . . . . . . . Parts Stripped . | . . . . . . . . . . . . . . . . Power Chain Reactions . | . . . . . . . . . . . . . . . . Alert | -11 -10 -10 -9 -8 -8 -8 -8 -6 -5 -5 -5 -5 -4 -3 -2 ------- Run | Yrd Mat Min Mat Mat Sto Rec Scr Fac Fac Ext Cet Arc Fac Res Res Maximum Alert Level 2 | . . . 1 1 . . . 2 1 1 1 . . 1 1 Low Security (%) 82 | 100 100 100 74 68 100 100 . 31 94 93 98 100 100 86 92 Level 1 14 | . . . 25 31 . . . 48 5 6 1 . . 13 7 Level 2 3 | . . . . . . . . 20 . . . . . . . Level 3 . | . . . . . . . . . . . . . . . . Level 4 . | . . . . . . . . . . . . . . . . Level 5 . | . . . . . . . . . . . . . . . . High Security . | . . . . . . . . . . . . . . . . Max Security . | . . . . . . . . . . . . . . . . Peak Influence 429 | 5 175 53 334 308 115 52 . 429 205 212 200 110 67 337 349 Initial 200 | . . 36 . 127 111 10 . . 200 41 104 64 21 9 105 Average 96 | . 96 3 102 148 45 13 . 269 148 53 128 92 14 55 99 Influence Increases 6616 | 10 510 58 849 371 535 218 10 1178 55 752 336 86 305 695 648 Destroy 0b10 Robot/C 3260 | . 340 40 500 180 300 40 . 660 20 380 160 40 180 200 220 Destroy 0b10 Robot/NC 290 | 10 25 5 40 5 40 10 10 30 10 10 10 5 20 25 35 Destroy Leader 690 | . 68 10 144 40 122 . . 140 10 54 . . 52 40 10 Allied During Kill 293 | . . 3 . . . . . . . 197 86 7 . . . Successful Hack 200 | . 17 . 37 1 18 18 . 7 . 64 . . . 24 14 Select Force Hacks 150 | . . . . . . 150 . . . . . . . . . Disable Machine 420 | . . . 45 30 45 . . 120 15 15 30 30 30 30 30 Destroy Structure 398 | . . . 23 25 10 . . 71 . 32 50 4 8 76 99 Partial Spotted 60 | . . . . . . . . . . . . . 15 15 30 Lose Combat Pursuer 855 | . 60 . 60 90 . . . 150 . . . . . 285 210 Influence Decreases 6267 | 10 416 152 546 410 771 246 10 768 380 649 364 186 347 526 486 Entered New Map 969 | . . 58 . 176 153 18 . . 210 44 84 96 39 9 82 Time Decay 3998 | 10 406 94 538 214 548 228 10 598 160 335 150 30 221 202 254 Search Patrol Dispatched 100 | . . . . . . . . . . . . . . 100 . Lost Part 800 | . 10 . 8 20 70 . . 170 10 30 10 20 87 215 150 Lost Ally 400 | . . . . . . . . . . 240 120 40 . . . Squads Dispatched 29 | . 2 1 . 1 1 . . 10 . 2 . . 4 4 4 Investigation 8 | . 1 1 . . . . . 2 . 2 . . 1 1 . Extermination 11 | . . . . . . . . 6 . . . . 1 2 2 Reinforcement 9 | . 1 . . 1 1 . . 1 . . . . 2 1 2 Assault 1 | . . . . . . . . 1 . . . . . . . Garrison . | . . . . . . . . . . . . . . . . Intercept . | . . . . . . . . . . . . . . . . Searches Triggered 1 | . . . . . . . . . . . . . . 1 . Construction Impeded . | . . . . . . . . . . . . . . . . Haulers Reinforced . | . . . . . . . . . . . . . . . . Active Scanning Responses . | . . . . . . . . . . . . . . . . Cargo Convoy Interrupts 1 | . . . . . . . . 1 . . . . . . . Stealth | -11 -10 -10 -9 -8 -8 -8 -8 -6 -5 -5 -5 -5 -4 -3 -2 --------- Run | Yrd Mat Min Mat Mat Sto Rec Scr Fac Fac Ext Cet Arc Fac Res Res Distress Signals 21 | . 2 . 4 . 2 . . 2 . 2 3 . 2 3 1 Communications Jammed 151 | . . . . . . . . 104 . . . 1 5 40 1 Distress Signals 145 | . . . . . . . . 103 . . . 1 . 40 1 Times Spotted 332 | . 28 2 39 12 23 2 . 61 9 28 11 4 24 50 39 Peak Tracking Total 19 | . 4 2 5 7 4 1 . 6 6 6 5 3 8 19 14 Tactical Retreats 35 | . 3 . 3 4 . . . 7 . 3 . . 4 5 6 ECM-based Alert Blocks 21 | . . . . . . . . . . 6 . . 7 8 . Traps | -11 -10 -10 -9 -8 -8 -8 -8 -6 -5 -5 -5 -5 -4 -3 -2 ------- Run | Yrd Mat Min Mat Mat Sto Rec Scr Fac Fac Ext Cet Arc Fac Res Res Traps Triggered 9 | . 4 . 2 1 . . . . 1 1 . . . . . Indirectly . | . . . . . . . . . . . . . . . . Trap Hack Attempts . | . . . . . . . . . . . . . . . . Triggered . | . . . . . . . . . . . . . . . . Disarmed . | . . . . . . . . . . . . . . . . Reprogrammed . | . . . . . . . . . . . . . . . . Reused . | . . . . . . . . . . . . . . . . Traps Extracted . | . . . . . . . . . . . . . . . . Installed . | . . . . . . . . . . . . . . . . Triggered . | . . . . . . . . . . . . . . . . Machines | -11 -10 -10 -9 -8 -8 -8 -8 -6 -5 -5 -5 -5 -4 -3 -2 ---------- Run | Yrd Mat Min Mat Mat Sto Rec Scr Fac Fac Ext Cet Arc Fac Res Res Machines Disabled 28 | . . . 3 2 3 . . 8 1 1 2 2 2 2 2 Max in Single Turn 5 | . . . 1 1 1 . . 5 1 . . . 1 1 1 Garrison Access 4 | . . . . . 1 . . . 2 . . . . . 1 Machines Repaired . | . . . . . . . . . . . . . . . . Machines Dismantled . | . . . . . . . . . . . . . . . . Machines Sabotaged . | . . . . . . . . . . . . . . . . Overloaded Fab Kills . | . . . . . . . . . . . . . . . . Hacking | -11 -10 -10 -9 -8 -8 -8 -8 -6 -5 -5 -5 -5 -4 -3 -2 --------- Run | Yrd Mat Min Mat Mat Sto Rec Scr Fac Fac Ext Cet Arc Fac Res Res Machines Accessed 75 | . 4 2 9 1 12 11 2 8 4 15 . . 2 2 3 Terminals 42 | . 4 . 6 . 8 6 . 2 . 13 . . 1 . 2 Fabricators 2 | . . . . . . . . 1 . . . . 1 . . Repair Stations 9 | . . . 1 1 2 . . 2 1 1 . . . 1 . Recycling Units 11 | . . . 1 . 1 5 . 2 1 1 . . . . . Scanalyzers 2 | . . . 1 . . . . . . . . . . 1 . Garrison Access 5 | . . . . . 1 . . 1 2 . . . . . 1 Total Hacks 224 | . 13 2 41 4 37 35 6 17 9 43 . . 5 6 6 Successful 131 | . 7 2 29 4 23 25 6 8 4 17 . . 2 2 2 Failed 90 | . 6 . 11 . 13 9 . 9 5 26 . . 3 4 4 Catastrophic 10 | . . . . . . . . 3 . 6 . . 1 . . Database Lockouts 3 | . . . 1 . 1 1 . . . . . . . . . Manual 97 | . 13 . 22 . 18 23 . 5 . 10 2 . . . 4 Terminals 137 | . 13 . 30 . 26 18 . 4 . 38 . . 3 . 5 Fabricators 5 | . . . . . . . . 3 . . . . 2 . . Repair Stations 29 | . . . 2 4 7 . . 6 3 3 . . . 4 . Recycling Units 32 | . . . 4 . 3 17 . 3 3 2 . . . . . Scanalyzers 7 | . . . 5 . . . . . . . . . . 2 . Garrison Access 6 | . . . . . 1 . . 1 3 . . . . . 1 Terminal Hacks 45 | . 1 2 9 . 9 6 6 . . 12 . . . . . Record 6 | . . . . . . . 6 . . . . . . . . Part Schematic 1 | . . . . . . . . . . 1 . . . . . Prototype ID Bank 8 | . . . 2 . 2 2 . . . 2 . . . . . Open Door 11 | . . 2 . . 2 . . . . 7 . . . . . Level Access Points 1 | . . . 1 . . . . . . . . . . . . Branch Access Points 2 | . . . 2 . . . . . . . . . . . . Machine Index 1 | . . . 1 . . . . . . . . . . . . Terminal Index 4 | . 1 . 1 . 1 1 . . . . . . . . . Scanalyzer Index 1 | . . . . . . 1 . . . . . . . . . Alert Level 1 | . . . . . . . . . . 1 . . . . . Dispatch Records 1 | . . . 1 . . . . . . . . . . . . Security Status 1 | . . . . . 1 . . . . . . . . . . Recall Reinforcements 1 | . . . . . 1 . . . . . . . . . . Registered Components 2 | . . . 1 . 1 . . . . . . . . . . Registered Prototypes 1 | . . . . . . 1 . . . . . . . . . Zone Layout 3 | . . . . . 1 1 . . . 1 . . . . . Fabricator Hacks 4 | . . . . . . . . 2 . . . . 2 . . Network Status 1 | . . . . . . . . 1 . . . . . . . Load Schematic 1 | . . . . . . . . . . . . . 1 . . Build 2 | . . . . . . . . 1 . . . . 1 . . Repair Station Hacks 18 | . . . 2 4 4 . . 4 1 2 . . . 1 . Scan Component 11 | . . . 1 2 2 . . 3 1 1 . . . 1 . Repair 7 | . . . 1 2 2 . . 1 . 1 . . . . . Recycling Unit Hacks 9 | . . . 2 . 1 4 . 1 1 . . . . . . Retrieve Matter 1 | . . . 1 . . . . . . . . . . . . Retrieve Components 8 | . . . 1 . 1 4 . 1 1 . . . . . . Scanalyzer 6 | . . . 5 . . . . . . . . . . 1 . Insert Component 1 | . . . 1 . . . . . . . . . . . . Analyze 2 | . . . 2 . . . . . . . . . . . . Retrieve Study 3 | . . . 2 . . . . . . . . . . 1 . Garrison Access Hacks 4 | . . . . . 1 . . . 2 . . . . . 1 Seal Access 4 | . . . . . 1 . . . 2 . . . . . 1 Unauthorized Hacks 45 | . 6 . 11 . 8 15 . 1 . 3 . . . . 1 Terminals 35 | . 6 . 10 . 7 8 . . . 3 . . . . 1 Assimilate 1 | . 1 . . . . . . . . . . . . . . Botnet 10 | . 1 . 4 . 1 3 . . . . . . . . 1 Operators 4 | . 1 . 1 . 2 . . . . . . . . . . Skim 20 | . 3 . 5 . 4 5 . . . 3 . . . . . Fabricators . | . . . . . . . . . . . . . . . . Repair Stations . | . . . . . . . . . . . . . . . . Recycling Units 10 | . . . 1 . 1 7 . 1 . . . . . . . Reject 4 | . . . 1 . 1 2 . . . . . . . . . Tunnel 5 | . . . . . . 5 . . . . . . . . . Fedlink 1 | . . . . . . . . 1 . . . . . . . Scanalyzers . | . . . . . . . . . . . . . . . . Garrison Access . | . . . . . . . . . . . . . . . . Data Cores Recovered 2 | . . . . . . . . . 1 . . . . . 1 Used . | . . . . . . . . . . . . . . . . Hacking Detections 60 | . 4 . 9 1 10 8 . 7 2 13 . . 2 2 2 Full Trace Events 5 | . . . . . . . . 1 . 2 . . 1 1 . Feedback Events . | . . . . . . . . . . . . . . . . Feedback Blocked . | . . . . . . . . . . . . . . . . Robot Schematics Acquired . | . . . . . . . . . . . . . . . . Robots Built . | . . . . . . . . . . . . . . . . Authchips . | . . . . . . . . . . . . . . . . Time . | . . . . . . . . . . . . . . . . Total Robot Build Rating . | . . . . . . . . . . . . . . . . Part Schematics Acquired 2 | . . . 1 . . . . . . 1 . . . . . Parts Built 4 | . . . . . . . . 2 . . . . 2 . . Authchips . | . . . . . . . . . . . . . . . . Time 245 | . . . . . . . . 117 . . . . 128 . . Total Part Build Rating 30 | . . . . . . . . 14 . . . . 16 . . Part Studies Acquired 3 | . . . 2 . . . . . . . . . . 1 . Parts Repaired 7 | . . . 1 2 2 . . 1 . 1 . . . . . Time 231 | . . . 26 77 58 . . 44 . 26 . . . . . Parts Recycled . | . . . . . . . . . . . . . . . . Recycled Matter . | . . . . . . . . . . . . . . . . Retrieved Matter 233 | . . . 233 . . . . . . . . . . . . Retrieved Components 37 | . . . 10 . 3 11 . 10 3 . . . . . . Parts Scanalyzed 1 | . . . 1 . . . . . . . . . . . . Part Schematics Acquired 1 | . . . 1 . . . . . . . . . . . . Parts Damaged . | . . . . . . . . . . . . . . . . Bothacking | -11 -10 -10 -9 -8 -8 -8 -8 -6 -5 -5 -5 -5 -4 -3 -2 ------------ Run | Yrd Mat Min Mat Mat Sto Rec Scr Fac Fac Ext Cet Arc Fac Res Res Used RIF Installer . | . . . . . . . . . . . . . . . . Robots Hacked . | . . . . . . . . . . . . . . . . Non-combat . | . . . . . . . . . . . . . . . . Combat . | . . . . . . . . . . . . . . . . Robot Hacks Applied . | . . . . . . . . . . . . . . . . Relay Couplers Released . | . . . . . . . . . . . . . . . . Fabnet Peak Effective % . | . . . . . . . . . . . . . . . . Robots Rewired 15 | . . . . . . . . . . 15 . . . . . Allies Hacked . | . . . . . . . . . . . . . . . . Hacks Repelled . | . . . . . . . . . . . . . . . . Allies | -11 -10 -10 -9 -8 -8 -8 -8 -6 -5 -5 -5 -5 -4 -3 -2 -------- Run | Yrd Mat Min Mat Mat Sto Rec Scr Fac Fac Ext Cet Arc Fac Res Res Total Allies 28 | . . 3 . . . . . . . 25 . . . . . Largest Group 10 | . . 2 1 . . . . . . 10 10 3 . . . Highest-Rated Group 424 | . . 62 31 . . . . . . 424 424 210 . . . Highest-Rated Ally 159 | . . 31 31 . . . . . . 159 152 140 . . . Total Orders 3 | . . . . . . . . . . 2 1 . . . . STAY 1 | . . . . . . . . . . 1 . . . . . ROAM 1 | . . . . . . . . . . . 1 . . . . FOLLOW 1 | . . . . . . . . . . 1 . . . . . Ally Attacks 251 | . . 11 3 . . . . . . 135 72 30 . . . Total Damage 4598 | . . 184 64 . . . . . . 2589 1279 482 . . . Kills 26 | . . 1 1 . . . . . . 17 5 2 . . . Allies Corrupted . | . . . . . . . . . . . . . . . . Allies Melted . | . . . . . . . . . . . . . . . . Intel | -11 -10 -10 -9 -8 -8 -8 -8 -6 -5 -5 -5 -5 -4 -3 -2 ------- Run | Yrd Mat Min Mat Mat Sto Rec Scr Fac Fac Ext Cet Arc Fac Res Res Active Infowar (turns) 9527 | 55 1155 1034 . . . . 819 2273 336 1710 311 73 786 653 322 Sensors 4733 | . . . . . . . . 1364 164 1650 225 . 456 639 235 Terrain 737 | . . . . . . . . 21 329 180 . . 94 . 113 Structural 2054 | . . . . . . . 769 1285 . . . . . . . Seismic 2244 | 55 1155 1034 . . . . . . . . . . . . . Jamming 6139 | . . . . . . . . 2239 336 1475 311 73 784 635 286 ECM 2102 | . . . . . . . 50 . . 662 2 . 770 618 . Robot Analysis Total . | . . . . . . . . . . . . . . . . Derelict Logs Recovered 1 | . . 1 . . . . . . . . . . . . . Drone Launches 6 | . . . . . . . . . . 6 . . . . . Drone Recoveries 3 | . . . . . . . . . . 3 . . . . . Exploration | -11 -10 -10 -9 -8 -8 -8 -8 -6 -5 -5 -5 -5 -4 -3 -2 ------------- Run | Yrd Mat Min Mat Mat Sto Rec Scr Fac Fac Ext Cet Arc Fac Res Res Turns Passed 16664 | 170 1183 1184 2417 454 1733 858 1752 2273 336 1762 311 73 786 822 550 Spaces Moved 9492 | 69 511 513 1114 152 730 588 1331 1143 249 996 192 48 409 693 754 Core 156 | 1 . . . . . . . . . . . . . 110 45 Treads 2330 | 68 511 513 1114 124 . . . . . . . . . . . Legs 6113 | . . . . 28 730 588 1331 1143 249 996 192 48 409 399 . Wheels . | . . . . . . . . . . . . . . . . Hover 429 | . . . . . . . . . . . . . . . 429 Flight 464 | . . . . . . . . . . . . . . 184 280 Fastest Speed 39 | 50 160 160 155 160 122 130 122 120 120 120 120 120 120 39 45 Average Speed 132 | 158 160 219 157 165 172 130 127 128 120 120 120 120 120 87 55 Slowest Speed 240 | 160 160 240 240 190 190 130 130 192 190 190 120 120 190 185 71 Overloaded Moves . | . . . . . . . . . . . . . . . . Propulsion Burnouts . | . . . . . . . . . . . . . . . . Robots Hopped 5 | . . . . . . . . . . . . . . . 5 Potential Cave-ins 3 | . . . . . . . . 3 . . . . . . . Cave-ins Triggered 1 | . . . . . . . . 1 . . . . . . . Exploration Rate (%) 51 | 4 79 72 81 16 88 96 89 28 7 84 65 64 9 23 23 Regions Visited 15 Branch Regions 7 Pre-discovered Areas 8 | . . 1 1 . . 6 . . . . . . . . . Known Exits Taken 12 | . . . 1 1 1 1 1 1 1 1 1 1 1 1 . Unknown Exits Taken 3 | 1 1 1 . . . . . . . . . . . . . Scrap Searched 7 | . . . . . . . 7 . . . . . . . . Spaces Dug 77 | . . . 7 1 7 . . 29 . . . . 4 8 21 Terrain Destroyed 298 | . . . 16 25 7 . . 108 . . 65 . 4 43 30 Melee 37 | . . . 2 1 7 . . 11 . . . . 4 8 4 Projectile . | . . . . . . . . . . . . . . . . AOE 261 | . . . 14 24 . . . 97 . . 65 . . 35 26 Terrain Rammed . | . . . . . . . . . . . . . . . . Walls Destroyed . | . . . . . . . . . . . . . . . . Machines Disabled . | . . . . . . . . . . . . . . . . Actions | -11 -10 -10 -9 -8 -8 -8 -8 -6 -5 -5 -5 -5 -4 -3 -2 --------- Run | Yrd Mat Min Mat Mat Sto Rec Scr Fac Fac Ext Cet Arc Fac Res Res Total 12578 | 100 752 555 1632 305 1038 671 1389 1760 270 1512 255 62 618 821 838 Wait 1481 | 3 131 14 305 106 127 66 3 338 . 208 34 11 92 29 14 Move 9469 | 68 510 512 1113 151 729 587 1330 1142 248 995 191 47 408 693 745 Hop 4 | . . . . . . . . . . . . . . . 4 Pick Up 234 | 4 17 5 45 4 21 1 18 30 5 45 4 . 24 8 3 Fast Attach 91 | 6 2 1 11 3 12 1 3 12 . 4 3 . 2 13 18 Attach 104 | 1 1 . 4 3 6 . 1 28 3 12 . 1 21 16 7 Detach 23 | . . . 1 . . . . 7 . . . . 1 5 9 Swap 148 | . 4 4 24 10 23 3 7 25 2 22 5 1 11 5 2 Drop 215 | . 8 8 39 3 31 3 23 32 1 31 6 1 8 11 10 Fire 321 | 18 78 11 86 23 72 6 1 12 . . 6 . . 4 4 Melee 308 | . . . 4 1 17 . 3 133 8 31 6 1 51 36 17 Ram 6 | . . . . . . . . . . . . . . 1 5 Kick 6 | . . . . . . 4 . 1 1 . . . . . . Crush 2 | . 1 . . 1 . . . . . . . . . . . Escape Stasis . | . . . . . . . . . . . . . . . . Rewire 166 | . . . . . . . . . 2 164 . . . . . Trap . | . . . . . . . . . . . . . . . . Miscellaneous . | . . . . . . . . . . . . . . . . Route ------- -11/Scrapyard -10/Materials (discovered 4 exits: *Mat x2 / *Min x2) -10/Mines (discovered 2 exits: *Mat / [*Sub]) -9/Materials (discovered 4 exits: *Mat x3 / *Min) -8/Materials -8/Storage (discovered 2 exits: *Fac / *Rec) -8/Recycling (discovered 2 exits: *Fac / *Scr) -8/Scraptown (discovered 2 exits: *Fac x2) -6/Factory (discovered 3 exits: *Fac x3) -5/Factory -5/Extension (discovered 2 exits: *Fac / *Cet) -5/Cetus (discovered 2 exits: *Fac / *Arc) -5/Archives -4/Factory -3/Research -2/Research History --------- Turn | Location | Event 51 | -11/Scrapyard | Discovered new exit (range 14) 171 | -11/Scrapyard | Entered Materials 294 | -10/Materials | Discovered new exit (range 11) 305 | -10/Materials | Build established: Mutant 373 | -10/Materials | Discovered new exit (range 3) 555 | -10/Materials | Discovered new exit (range 9) 853 | -10/Materials | Discovered new exit (range 16) 1354 | -10/Materials | Entered Mines 1363 | -10/Mines | Met a Derelict shopkeep closing up shop 1553 | -10/Mines | Learned location of Storage (-8) 1584 | -10/Mines | Discovered new exit (range 13) 1923 | -10/Mines | Discovered new exit (range 6) 1961 | -10/Mines | Found a Scrap Suit stashed away for nefarious purposes 2113 | -10/Mines | Received a Mining Laser from a helpful Derelict 2377 | -10/Mines | Found the Drone Emporium 2389 | -10/Mines | Found Prototype Device 2389 | -10/Mines | Identified Thief Drone Bay 2538 | -10/Mines | Entered Materials 2538 | -9/Materials | Accompanied by 1 ally 2538 | -9/Materials | Evolved 2 slots: Propulsion x1, Utility x1 2543 | -9/Materials | Led the pair of lost Derelicts to an unsafe place 2853 | -9/Materials | Build established: Hacker-Mutant 2904 | -9/Materials | Identified exit to Mines 2904 | -9/Materials | Identified exit to Materials 3150 | -9/Materials | Repaired Hcp. Storage Unit 3937 | -9/Materials | Central database locked down 4468 | -9/Materials | Core integrity fell below 50% 4707 | -9/Materials | Learned location of 1 exit from Recycling 4788 | -9/Materials | Learned location of Zion (-6) 4815 | -9/Materials | Learned Storage emergency access door positions 4841 | -9/Materials | Learned 4 Recycling zone layouts 4850 | -9/Materials | Learned Storage security intel 4867 | -9/Materials | Learned location of 1 exit from Storage 4892 | -9/Materials | Learned Storage trap positions 4929 | -9/Materials | Learned 2 Storage zone layouts 4955 | -9/Materials | Entered another Materials area 4955 | -8/Materials | Evolved 2 slots: Propulsion x1, Utility x1 5024 | -8/Materials | Repaired Adv. Beam Cannon 5051 | -8/Materials | Repaired Lgt. Treads 5282 | -8/Materials | Discovered new exit (range 10) 5405 | -8/Materials | Identified exit to Storage 5409 | -8/Materials | Entered Storage 5410 | -8/Storage | Identified exit to Recycling 5411 | -8/Storage | Identified exit to Factory 5413 | -8/Storage | Loaded intel: 20 trap records 5817 | -8/Storage | Build established: Scavenger-Mutant 5871 | -8/Storage | Repaired Aluminum Leg 5958 | -8/Storage | Central database locked down 5983 | -8/Storage | Used back door to open Recycling access 6501 | -8/Storage | Repaired Imp. Aluminum Leg 7138 | -8/Storage | Build established: Mutant 7142 | -8/Storage | Entered Recycling 7143 | -8/Recycling | Identified exit to Scraptown 7144 | -8/Recycling | Identified exit to Factory 7897 | -8/Recycling | Learned 4 Factory zone layouts 7898 | -8/Recycling | Learned Storage trap positions 7899 | -8/Recycling | Learned Factory trap positions 7900 | -8/Recycling | Learned Factory stockpile data 7901 | -8/Recycling | Learned Storage emergency access door positions 7914 | -8/Recycling | Learned 2 Lower Caves zone layouts 7969 | -8/Recycling | Scanned before Scraplab entrance 7987 | -8/Recycling | Entered Scraplab 8000 | -8/Recycling | Entered Scraptown 8000 | -8/Scraptown | System corruption cleaned by C-Scrubber 8174 | -8/Scraptown | Visited Awakened 8204 | -8/Scraptown | Visited Comm Corps 8256 | -8/Scraptown | Visited The Evicted 8606 | -8/Scraptown | Visited TADAMA 8624 | -8/Scraptown | Visited Shadow of the Wyrm 8653 | -8/Scraptown | Visited SPCMW 8674 | -8/Scraptown | Visited UFD Registry 8674 | -8/Scraptown | Registered with UFD as "Dualgunner" 8710 | -8/Scraptown | Visited Abandonware Association 8724 | -8/Scraptown | Learned abandonware demo "SHUTEYE.EXE" 8724 | -8/Scraptown | Learned abandonware demo "MELTYB.EXE" 8754 | -8/Scraptown | Visited Derelict Rescue Squad 8764 | -8/Scraptown | Found DRS Beacon 8791 | -8/Scraptown | Visited A0-MCA Data Center 8799 | -8/Scraptown | Given a B+ rating by A0-MCA 8842 | -8/Scraptown | Found A0-MCA's Component Scanner 8990 | -8/Scraptown | Visited LU-1G1's Boring Crew 9042 | -8/Scraptown | Visited DA-N13 Charitable Foundation 9053 | -8/Scraptown | Found DCF Scrap (31 items) 9170 | -8/Scraptown | Found Scrap Suit 9260 | -8/Scraptown | Visited Supply Room 9288 | -8/Scraptown | Visited Research Penetration Think Tank 9320 | -8/Scraptown | Visited Junk Repository 9396 | -8/Scraptown | Visited Scrap Suit Storage 9432 | -8/Scraptown | Visited Science Testing Area 9439 | -8/Scraptown | Attached CPS modules to L-31 Rogue. 9512 | -8/Scraptown | Build established: Scrapper 9679 | -8/Scraptown | Met Optimus 9679 | -8/Scraptown | Accepted into 0bPrime 9752 | -8/Scraptown | Entered Factory 9752 | -6/Factory | Evolved 4 slots: Power x1, Utility x3 9753 | -6/Factory | Identified exit to Factory 9755 | -6/Factory | Loaded intel: 102 trap records 9929 | -6/Factory | Loaded intel: 8 recycling unit locations 10168 | -6/Factory | Repaired Greatsword 10324 | -6/Factory | Fabricated Myomer Leg (x2) 10476 | -6/Factory | Attached CPS modules to L-41 Fighter. 10513 | -6/Factory | Lost 3 parts (1u2w) 10919 | -6/Factory | Build established: Infiltrator-Gladiator 11162 | -6/Factory | Cargo convoy interrupted 11365 | -6/Factory | Crushed by falling debris 11365 | -6/Factory | Core integrity fell below 50% 11365 | -6/Factory | System corruption reached 10% 11513 | -6/Factory | Lost 7 parts (2p2n1u2w) 11556 | -6/Factory | Lost 3 parts (2n1u) 11811 | -6/Factory | Build established: Scavenger-Mutant 11852 | -6/Factory | First assault squad dispatched 12025 | -6/Factory | Entered another Factory area 12025 | -5/Factory | Evolved 2 slots: Propulsion x1, Utility x1 12341 | -5/Factory | Discovered new exit (range 16) 12348 | -5/Factory | Assembled infested ambush trap array 12359 | -5/Factory | Identified exit to Extension 12361 | -5/Factory | Entered Extension 12540 | -5/Extension | Lost 3 parts (2n1w) 12693 | -5/Extension | Rescued a captive Derelict 12718 | -5/Extension | Rescued a captive Derelict 12845 | -5/Extension | Build established: Scavenger-Gladiator 12931 | -5/Extension | Rescued a captive Derelict 12933 | -5/Extension | Rescued a captive Derelict 12984 | -5/Extension | Repaired Hcp. Storage Unit 13006 | -5/Extension | Lost 7 allies 13412 | -5/Extension | Spotted B-75 Beast 13423 | -5/Extension | Spotted B-75 Beast 13466 | -5/Extension | Lost 3 allies 13478 | -5/Extension | Lost 3 parts (1n1u1w) 13515 | -5/Extension | Rescued a captive Derelict 13516 | -5/Extension | Rescued a captive Derelict 13572 | -5/Extension | Rescued a captive Derelict 13574 | -5/Extension | Rescued a captive Derelict 13613 | -5/Extension | Rescued a captive Derelict 13641 | -5/Extension | Rescued A7 13789 | -5/Extension | Build established: Scavenger-Mutant 14075 | -5/Extension | Discovered new exit (range 10) 14076 | -5/Extension | Discovered new exit (range 6) 14094 | -5/Extension | Identified exit to Factory 14096 | -5/Extension | Identified exit to Cetus 14123 | -5/Extension | Entered Cetus 14123 | -5/Cetus | Accompanied by 10 allies (A7) 14128 | -5/Cetus | Acquired a Cetus Manufacturing Module code from A7 14156 | -5/Cetus | Spotted Cetus Guard 14156 | -5/Cetus | Spotted Cetus Guard 14158 | -5/Cetus | Spotted Cetus Guard 14158 | -5/Cetus | Spotted Cetus Guard 14175 | -5/Cetus | Allies destroyed Cetus Guard 14180 | -5/Cetus | Destroyed Cetus Guard 14183 | -5/Cetus | Destroyed Cetus Guard 14186 | -5/Cetus | Allies destroyed Cetus Guard 14214 | -5/Cetus | Lost 3 allies 14257 | -5/Cetus | Cetus Manufacturing Module disabled 14281 | -5/Cetus | Failed to start Cetus Manufacturing Module 14319 | -5/Cetus | Discovered new exit (range 16) 14340 | -5/Cetus | Spotted Cetus Guard 14342 | -5/Cetus | Spotted Cetus Guard 14343 | -5/Cetus | Spotted Cetus Guard 14345 | -5/Cetus | Spotted Cetus Guard 14352 | -5/Cetus | Destroyed Cetus Guard 14353 | -5/Cetus | Allies destroyed Cetus Guard 14358 | -5/Cetus | Destroyed Cetus Guard 14359 | -5/Cetus | Allies destroyed Cetus Guard 14369 | -5/Cetus | Discovered exit to Factory (range 15) 14375 | -5/Cetus | Met Revision 17 14417 | -5/Cetus | Identified exit to Archives 14434 | -5/Cetus | Entered Archives 14434 | -5/Archives | Accompanied by 3 allies (A7) 14484 | -5/Archives | Discovered exit to Factory (range 12) 14507 | -5/Archives | Entered Factory 14507 | -4/Factory | Evolved 2 slots: Utility x2 14550 | -4/Factory | Discovered new exit (range 12) 14672 | -4/Factory | Lost 9 parts (1p4n4u) 15104 | -4/Factory | Fabricated Enh. Force Lance? 15292 | -4/Factory | Identified exit to Research 15293 | -4/Factory | Entered Research 15293 | -3/Research | Evolved 2 slots: Utility x1, Weapon x1 15585 | -3/Research | Build established: Scavenger-Gladiator 15901 | -3/Research | Lost 9 parts (1p3n4u1w) 15921 | -3/Research | Spotted B-86 Titan 15950 | -3/Research | Core integrity fell below 50% 15977 | -3/Research | Lost 13 parts (1p7n4u1w) 15986 | -3/Research | Found Prototype Launcher 15986 | -3/Research | Identified Hellfire Missile Launcher 16043 | -3/Research | Search patrols dispatched 16110 | -3/Research | Discovered new exit (range 7) 16112 | -3/Research | Identified exit to Research 16115 | -3/Research | Entered another Research area 16115 | -2/Research | Evolved 2 slots: Propulsion x2 16120 | -2/Research | Found Prototype Launcher 16120 | -2/Research | Identified Point Singularity Launcher 16141 | -2/Research | Found Prototype Processor 16141 | -2/Research | Identified Exp. Melee Analysis Suite 16144 | -2/Research | Found Faulty Exp. Melee Analysis Suite 16246 | -2/Research | Build established: Mutant 16292 | -2/Research | Found Prototype Device 16292 | -2/Research | Identified Exp. Shield Generator 16534 | -2/Research | Spotted B-90 Cyclops 16549 | -2/Research | Spotted B-90 Cyclops 16609 | -2/Research | Found Prototype Launcher 16609 | -2/Research | Identified Enh. Gamma Bomb Array 16636 | -2/Research | Core integrity fell below 50% 16658 | -2/Research | Core integrity fell below 20% 16665 | -2/Research | Destroyed by P-80 Master with Gamma Rifle Last Messages --------------- 16631_ K-01 Serf collects debris. 16632_ Penetrated by Slug. 16632_ P-80 Master resets P-80 Master, system corruption cleaned. 16632_ P-80 Master resets R-10 Processor, system corruption cleaned. 16632_ Penetrated by Slug. 16634_ K-01 Serf collects debris. 16635_ Slug penetrates K-01 Serf. 16635_ K-01 Serf destroyed. 16635_ Penetrated by Slug. 16636_ Slug penetrates Wall. 16637_ Imp. System Shield destroyed. 16639_ The unstable cave ceiling collapses. 16641_ Imp. Gyrokinetic Inverter destroyed. 16642_ Dropped Thunder Hammer. 16645_ The unstable cave ceiling collapses. 16659_ O-32 Director: "IFF HANDSHAKE FAILED. SECURING TERMINAL." 16662_ VY, 7/J ZDKBI8UVL4XV&8ZL#S/QJ1SCD58|CM Map ----- +----------------------------------------------------+ | | | | | | | | | | | | | | | | | | | | | | | | | | | ?????????????????????????????????????????????????? | | ?????????????????????????????????????????????????? | | ?????????????????????????????????????????????????? | | ?????????????????????????????????????????????????? | | ??????????????????????????##?????????????????????? | | ?????????????????????????? +?????????????????????? | | ?????????????????????????# #?????????????????????? | | ?????????????????????????# #?????????????????????? | | ?????????????????????????# #?????????????????????? | | ???????????##+#######????# #?????????????????????? | | ?????????? ##### #?????????????????????? | | ?????????? #?????????????????????? | | ?????????? @ #???########??????????? | | ?????????? ##? #??????????? | | ?????????????#### """ #? #??????????? | | ????????????????# """" # ???????????? | | ????????????????# R"""" # "" "" ????????????? | | ????????????????# """ + ""T""?????????????? | | ????????????????# # """ ????????????? | | ????????????????# # ???????????? | | ???####???????### #? #??????????? | | ??? !????? ######## #?###+#####??????????? | | ?? #???? #??????#ss #?????#??????????????? | | [ """ ]# ?? ########s ##### ##?????????????? | | """ # """ # #T ## ????????? | | R" # """" # p ??????? | | """ # """" # % % H ??????? | | "" # """ # ##### ???????? | | ?? #? # ####+##########?????????????? | | ???? #??? # #?? ??????????????????????? | | ??####+######+### #?? ??????????????????????? | | ??# #? ""?????????????????????? | | ??# #? ""?????????????????????? | | ??# # ! """????????????????????? | | ??# # ????????????????????? | | ??# ######+######## ????????????????????? | | ??# #?????????????# "??????????????????????? | +----------------------------------------------------+ Best States ------------- Heat Dissipation 68 Energy Generation 39 Energy Capacity 525 Matter Stores 300 Matter Capacity 300 Sight Range 16 Robot Scan Range 16 Terrain Scan Range 16 Terrain Scan Density 210 ECM Strength 2 Jamming Range 12 Power Amplification 30 Armor Coverage 600 Resistance: KI 20 Resistance: EM 25 Utility Shielding 66 Melee Speed Boost 20 Phase Shifting 10 Evasion (%) 70 Targeting Accuracy 8 Melee Accuracy 18 Launcher Accuracy 40 Target Analysis 8 Core Analysis 6 Recoil Reduction 4 Force Boost 20 Offensive Hacking 20 Defensive Hacking 12 Item Schematics ----------------- Imp. Signal Interpreter | -9/Materials | Scanalyzed Enh. Force Lance | -5/Extension | Hacked Robot Schematics ------------------ None Fabricated ------------ Myomer Leg | x2 | -6/Factory | Preloaded Enh. Force Lance | x2 | -4/Factory Repaired ---------- Hcp. Storage Unit | 56% | -9/Materials Adv. Beam Cannon | 29% | -8/Materials Lgt. Treads | 72% | -8/Materials Aluminum Leg | 56% | -8/Storage Imp. Aluminum Leg | 5% | -8/Storage Greatsword | 10% | -6/Factory Hcp. Storage Unit | 74% | -5/Extension Studied --------- Mining Claw | -9/Materials | Hacked Hvy. Assault Rifle | -9/Materials | Hacked Flexi-carbon Leg | -3/Research | Hacked Alien Tech Used ----------------- None Achievements -------------- None Challenges ------------ None Game ------ Seed DrainedEnergySuit Manual? 0 Play Time 02:15:44 Cumulative 202.2 hours Start 2025.11.29 @ 13:51:33 End 2025.11.29 @ 16:06:39 Sessions 1 Manual Loads 0 Difficulty Rogue Special Mode None Game No. 141 Rogue 141 Adventurer 0 Explorer 0 Win Type - Total 7 Types 5/0/1/1/0/0/0/0/0/0 Lore% 83 Gallery% 75 Achievement% 58 Wizard Run 0 Options --------- Layout 1 ASCII 0 Keyboard 0 Movement Mouse Keybinds 0 Fullscreen 2 Font 24/Smallcaps Map View 50x35 Zoom Use 0% Tactical HUD 1 Map Filters NONE Filters NONE Steam 1 RUN: 76ec8815-6873-43e6-a26a-39a762569aae